[Event "Cracovia Festival-A 2023"]
[Site "Krakow"]
[Date "2024.01.02"]
[Round "6.25"]
[White "Dubnevych, Maksym"]
[Black "Wojdak, Jan"]
[Result "1-0"]
[ECO "D37"]
[WhiteElo "2340"]
[BlackElo "2219"]
[Annotator "RC"]
[PlyCount "115"]
[EventDate "2023.12.24"]
[EventType "swiss"]
[EventCountry "POL"]
[SourceTitle "playchess.com"]
[Source "ChessBase"]
[SourceQuality "1"]
[TimeControl "40/5400+30:1800+30"]

1. d4 {[%emt 0:01:52]} d5 {[%emt 0:05:16]} 2. c4 {[%emt 0:00:41]} e6 {[%emt 0:00:39]} 3. Nf3 {[%emt 0:00:05]} Nf6 {[%emt 0:00:07]} 4. Nc3 {[%emt 0:00:09]} Nbd7 {[%emt 0:00:05]} 5. Bf4 {[%emt 0:00:22]} Bb4 {[%emt 0:00:45]} 6. cxd5 {[%emt 0:13:03]} exd5 {[%emt 0:00:14]} 7. e3 {[%emt 0:06:42]} c5 {[%emt 0:20:11]} 8. Bd3 {[%emt 0:03:01]} Qa5 {[%emt 0:00:38]} 9. O-O {[%emt 0:06:35]} Bxc3 {[%emt 0:02:28]} 10. bxc3 {[%emt 0:00:02]} c4 {[%emt 0:02:22]} 11. Bc2 {[%emt 0:01:07]} O-O {[%emt 0:04:23]} 12. Qb1 {[%emt 0:02:03]} Re8 {[%emt 0:03:09]} 13. Qb4 {[%emt 0:07:35]} Qxb4 {[%emt 0:12:49]} 14. cxb4 {[%emt 0:00:40]} Nh5 {[%emt 0:12:36]} 15. h3 {[%emt 0:02:16]} Nxf4 {[%emt 0:01:10]} 16. exf4 {[%emt 0:00:02]} Nf8 {[%emt 0:05:08]} 17. Rfe1 {[%emt 0:04:13]} Bd7 {[%emt 0:00:42]} 18. a4 {[%emt 0:03:05]} f6 {[%emt 0:02:24]} 19. f5 {[%emt 0:04:11]} Kf7 {[%emt 0:03:10]} 20. Kf1 {[%emt 0:01:29]} Rxe1+ {[%emt 0:00:56]} 21. Kxe1 {[%emt 0:01:15]} Ke7 {[%emt 0:02:53]} 22. Kd2 {[%emt 0:00:01]} a5 {[%emt 0:02:06]} 23. b5 {[%emt 0:00:21]} Kd6 {[%emt 0:00:07]} 24. g4 {[%emt 0:00:35]} Be8 {[%emt 0:05:21]} 25. Nh4 {[%emt 0:01:16]} Bf7 {[%emt 0:02:00]} 26. Ng2 {[%emt 0:00:24]} Re8 {[%emt 0:01:31]} 27. Ne3 {[%emt 0:00:15]} Nd7 {[%emt 0:00:23]} 28. Re1 {[%emt 0:01:11]} h6 {[%emt 0:01:24]} 29. Rb1 {[%emt 0:02:25]} Nb6 {[%emt 0:00:26]} 30. h4 {[%emt 0:00:40]} Kd7 {[%emt 0:02:57]} 31. Rg1 {[%emt 0:00:05]} Nc8 {[%emt 0:00:37]} 32. g5 {[%emt 0:03:08]} h5 {[%emt 0:01:38]} 33. g6 {[%emt 0:01:19]} Bg8 {[%emt 0:00:03]} 34. Ng2 {[%emt 0:05:04]} Nd6 {[%emt 0:00:03]} 35. f3 {[%emt 0:00:07]} c3+ {[%emt 0:01:50]} 36. Kxc3 {[%emt 0:00:43]} Rc8+ {[%emt 0:01:07]} 37. Kb3 {[%emt 0:00:59]} Nc4 {[%emt 0:00:11]} 38. Rd1 {[%emt 0:01:30]} Re8 {[%emt 0:00:39]} 39. Re1 {[%emt 0:02:18]} Rc8 {[%emt 0:00:04]} 40. Re2 {[%emt 0:00:00]} Nd6 {[%emt 0:00:00]} 41. Bd3 {[%emt 0:12:07]} Rc1 {[%emt 0:05:58]} 42. b6 {[%emt 0:04:43]} Rh1 {[%emt 0:00:52]} 43. Ne3 {[%emt 0:15:47]} Rxh4 {[%emt 0:03:28]} 44. Rc2 {[%emt 0:00:16]} Rxd4 {[%emt 0:08:26]} 45. Rc7+ {[%emt 0:00:12]} Ke8 {[%emt 0:00:47]} 46. Bb5+ {[%emt 0:01:50]} Nxb5 {[%emt 0:02:53]} 47. axb5 {[%emt 0:00:09]} Rd3+ {[%emt 0:02:22]} 48. Kc2 {[%emt 0:00:14]} Rxe3 {[%emt 0:00:06]} 49. Rxb7 {[%emt 0:00:18]} Be6 {[%emt 0:05:44]} 50. fxe6 {[%emt 0:00:40]} Rxe6 {[%emt 0:00:09]} 51. Rb8+ {[%emt 0:00:04]} Kd7 {[%emt 0:00:35]} 52. Rb7+ {[%emt 0:01:11]} Ke8 {[%emt 0:01:12]} 53. Kd3 {[%emt 0:01:32]} f5 {[%emt 0:02:49]} 54. Kd4 {[%emt 0:00:13]} Rxg6 {[%emt 0:01:19]} 55. Kc5 {[%emt 0:00:27]} Rg1 {[%emt 0:04:18]} 56. Ra7 {[%emt 0:00:25]} Rc1+ {[%emt 0:00:47]} 57. Kd6 {[%emt 0:00:01]} Rb1 {[%emt 0:00:30]} 58. Rxa5 {[%emt 0:00:06]} 1-0

[Event "Cracovia Festival-A 2023"]
[Site "Krakow"]
[Date "2024.01.02"]
[Round "6.27"]
[White "Ongut, Tamas Gunes"]
[Black "Selbes, Tamer Tarik"]
[Result "1/2-1/2"]
[ECO "E48"]
[WhiteElo "2313"]
[BlackElo "2185"]
[Annotator "RC"]
[PlyCount "51"]
[EventDate "2023.12.24"]
[EventType "swiss"]
[EventCountry "POL"]
[SourceTitle "playchess.com"]
[Source "ChessBase"]
[SourceQuality "1"]
[TimeControl "40/5400+30:1800+30"]

1. d4 {[%emt 0:06:17]} Nf6 {[%emt 0:00:09]} 2. c4 {[%emt 0:00:08]} e6 {[%emt 0:00:21]} 3. Nc3 {[%emt 0:00:10]} Bb4 {[%emt 0:00:08]} 4. e3 {[%emt 0:00:08]} O-O {[%emt 0:00:18]} 5. Bd3 {[%emt 0:00:08]} d5 {[%emt 0:01:18]} 6. cxd5 {[%emt 0:00:10]} exd5 {[%emt 0:00:06]} 7. a3 {[%emt 0:00:07]} Bd6 {[%emt 0:01:29]} 8. Qc2 {[%emt 0:00:10]} c6 {[%emt 0:00:31]} 9. Nge2 {[%emt 0:00:09]} Re8 {[%emt 0:00:11]} 10. f3 {[%emt 0:02:32]} c5 {[%emt 0:05:48]} 11. O-O {[%emt 0:00:42]} Nc6 {[%emt 0:01:23]} 12. Kh1 {[%emt 0:00:25]} h5 {[%emt 0:03:12]} 13. Bd2 {[%emt 0:10:58]} a6 {[%emt 0:03:26]} 14. b3 {[%emt 0:10:41]} Bd7 {[%emt 0:06:11]} 15. dxc5 {[%emt 0:07:13]} Bxc5 {[%emt 0:00:11]} 16. Nxd5 {[%emt 0:03:18]} Ba7 {[%emt 0:00:04]} 17. Nxf6+ {[%emt 0:04:37]} Qxf6 {[%emt 0:00:04]} 18. Bc3 {[%emt 0:04:40]} Qh6 {[%emt 0:00:13]} 19. e4 {[%emt 0:04:40]} Rac8 {[%emt 0:02:13]} 20. Qb2 {[%emt 0:00:15]} h4 {[%emt 0:02:37]} 21. Rad1 {[%emt 0:01:29]} Be6 {[%emt 0:00:08]} 22. f4 {[%emt 0:10:20]} Bg4 {[%emt 0:00:59]} 23. h3 {[%emt 0:00:41]} Bh5 {[%emt 0:00:44]} 24. Rde1 {[%emt 0:06:59]} Rcd8 {[%emt 0:00:38]} 25. Bb1 {[%emt 0:00:09]} Rd7 {[%emt 0:02:12]} 26. Ng1 {[%emt 0:09:36]} 1/2-1/2

[Event "Cracovia Festival-A 2023"]
[Site "Krakow"]
[Date "2024.01.02"]
[Round "6.28"]
[White "Meurs, Tom"]
[Black "Szczurek, Krzysztof"]
[Result "0-1"]
[ECO "B12"]
[WhiteElo "2290"]
[BlackElo "2175"]
[Annotator "RC"]
[PlyCount "92"]
[EventDate "2023.12.24"]
[EventType "swiss"]
[EventCountry "POL"]
[SourceTitle "playchess.com"]
[Source "ChessBase"]
[SourceQuality "1"]
[TimeControl "40/5400+30:1800+30"]

1. e4 {[%emt 0:00:03]} c6 {[%emt 0:00:04]} 2. d4 {[%emt 0:00:23]} d5 {[%emt 0:00:05]} 3. e5 {[%emt 0:00:16]} c5 {[%emt 0:00:04]} 4. Nf3 {[%emt 0:00:31]} cxd4 {[%emt 0:01:10]} 5. Nxd4 {[%emt 0:00:08]} Nc6 {[%emt 0:00:10]} 6. Nxc6 {[%emt 0:00:31]} bxc6 {[%emt 0:00:06]} 7. Bd3 {[%emt 0:00:06]} e6 {[%emt 0:00:38]} 8. O-O {[%emt 0:00:57]} Ne7 {[%emt 0:00:16]} 9. Nd2 {[%emt 0:01:42]} Ng6 {[%emt 0:00:59]} 10. Nf3 {[%emt 0:04:13]} Be7 {[%emt 0:01:21]} 11. Qe2 {[%emt 0:06:54]} O-O {[%emt 0:01:03]} 12. c4 {[%emt 0:02:14]} Bb7 {[%emt 0:08:11]} 13. Re1 {[%emt 0:13:13]} a5 {[%emt 0:18:40]} 14. Qc2 {[%emt 0:07:42]} a4 {[%emt 0:10:24]} 15. Be3 {[%emt 0:05:40]} Qa5 {[%emt 0:09:49]} 16. h4 {[%emt 0:06:40]} dxc4 {[%emt 0:03:18]} 17. Bxg6 {[%emt 0:15:55]} hxg6 {[%emt 0:01:23]} 18. Bg5 {[%emt 0:00:33]} Bb4 {[%emt 0:01:49]} 19. Re3 {[%emt 0:01:20]} Ba6 {[%emt 0:09:23]} 20. h5 {[%emt 0:03:54]} gxh5 {[%emt 0:05:19]} 21. Bh4 {[%emt 0:00:29]} Ra7 {[%emt 0:11:21]} 22. Ng5 {[%emt 0:01:59]} g6 {[%emt 0:00:07]} 23. Ne4 {[%emt 0:02:34]} Be7 {[%emt 0:03:07]} 24. Nf6+ {[%emt 0:06:58]} Bxf6 {[%emt 0:02:53]} 25. Bxf6 {[%emt 0:00:05]} Rd7 {[%emt 0:00:12]} 26. Qe4 {[%emt 0:01:58]} Qd5 {[%emt 0:00:49]} 27. Qf4 {[%emt 0:01:11]} Kh7 {[%emt 0:00:45]} 28. Qg5 {[%emt 0:02:49]} Qd2 {[%emt 0:01:27]} 29. Rh3 {[%emt 0:10:38]} Qxg5 {[%emt 0:00:26]} 30. Bxg5 {[%emt 0:00:04]} Rd5 {[%emt 0:03:53]} 31. Re1 {[%emt 0:00:15]} Rb8 {[%emt 0:00:10]} 32. g4 {[%emt 0:01:30]} Rd4 {[%emt 0:02:35]} 33. f3 {[%emt 0:02:00]} Rxb2 {[%emt 0:00:15]} 34. Kh1 {[%emt 0:00:41]} c3 {[%emt 0:03:19]} 35. gxh5 {[%emt 0:00:04]} c2 {[%emt 0:00:57]} 36. hxg6+ {[%emt 0:01:04]} Kg8 {[%emt 0:00:51]} 37. Bf6 {[%emt 0:00:47]} fxg6 {[%emt 0:00:20]} 38. Rh8+ {[%emt 0:00:34]} Kf7 {[%emt 0:00:08]} 39. Rh7+ {[%emt 0:00:48]} Ke8 {[%emt 0:00:10]} 40. Rh8+ {[%emt 0:00:00]} Kf7 {[%emt 0:00:00]} 41. Rh7+ {[%emt 0:00:51]} Ke8 {[%emt 0:00:18]} 42. Rh8+ {[%emt 0:00:25]} Kd7 {[%emt 0:03:40]} 43. Rd8+ {[%emt 0:02:04]} Kc7 {[%emt 0:00:06]} 44. Rxd4 {[%emt 0:01:25]} Rb1 {[%emt 0:00:44]} 45. Rde4 {[%emt 0:00:11]} Bd3 {[%emt 0:00:10]} 46. R4e3 {[%emt 0:00:29]} Rd1 {[%emt 0:00:10]} 0-1

[Event "Cracovia Festival-A 2023"]
[Site "Krakow"]
[Date "2024.01.02"]
[Round "6.29"]
[White "Nemsadze, Daviti"]
[Black "Buchenau, Frank"]
[Result "1-0"]
[ECO "C11"]
[WhiteElo "2253"]
[BlackElo "2135"]
[Annotator "RC"]
[PlyCount "95"]
[EventDate "2023.12.24"]
[EventType "swiss"]
[EventCountry "POL"]
[SourceTitle "playchess.com"]
[Source "ChessBase"]
[SourceQuality "1"]
[TimeControl "40/5400+30:1800+30"]

1. e4 {[%emt 0:00:07]} e6 {[%emt 0:00:09]} 2. d4 {[%emt 0:03:10]} d5 {[%emt 0:00:06]} 3. Nc3 {[%emt 0:00:02]} Nf6 {[%emt 0:00:08]} 4. e5 {[%emt 0:00:10]} Nfd7 {[%emt 0:00:07]} 5. f4 {[%emt 0:00:01]} c5 {[%emt 0:00:10]} 6. Nf3 {[%emt 0:00:02]} Qb6 {[%emt 0:00:08]} 7. Be3 {[%emt 0:20:41]} a6 {[%emt 0:00:07]} 8. a3 {[%emt 0:16:51]} Nc6 {[%emt 0:01:34]} 9. Rb1 {[%emt 0:06:08]} cxd4 {[%emt 0:07:53]} 10. Nxd4 {[%emt 0:00:28]} Bc5 {[%emt 0:06:35]} 11. Nce2 {[%emt 0:05:21]} Qa7 {[%emt 0:18:25]} 12. b4 {[%emt 0:04:06]} Bb6 {[%emt 0:02:35]} 13. a4 {[%emt 0:02:00]} Qb8 {[%emt 0:04:48]} 14. a5 {[%emt 0:00:46]} Ba7 {[%emt 0:04:52]} 15. g3 {[%emt 0:10:17]} f6 {[%emt 0:03:54]} 16. exf6 {[%emt 0:14:38]} Nxf6 {[%emt 0:01:49]} 17. Nxc6 {[%emt 0:03:47]} bxc6 {[%emt 0:00:12]} 18. Bxa7 {[%emt 0:01:43]} Rxa7 {[%emt 0:05:36]} 19. Bg2 {[%emt 0:02:32]} e5 {[%emt 0:03:06]} 20. fxe5 {[%emt 0:00:08]} Qxe5 {[%emt 0:00:23]} 21. Qd4 {[%emt 0:00:24]} Re7 {[%emt 0:00:34]} 22. Qxe5 {[%emt 0:00:09]} Rxe5 {[%emt 0:00:06]} 23. Kd2 {[%emt 0:00:55]} O-O {[%emt 0:02:32]} 24. Rhf1 {[%emt 0:04:27]} Rfe8 {[%emt 0:05:08]} 25. Nd4 {[%emt 0:00:08]} Ng4 {[%emt 0:01:32]} 26. Rfe1 {[%emt 0:01:50]} Bd7 {[%emt 0:08:50]} 27. Bf1 {[%emt 0:01:42]} Re4 {[%emt 0:11:54]} 28. c3 {[%emt 0:00:14]} Bc8 {[%emt 0:01:48]} 29. Rxe4 {[%emt 0:00:57]} Rxe4 {[%emt 0:01:04]} 30. Bd3 {[%emt 0:01:06]} Re8 {[%emt 0:01:07]} 31. Re1 {[%emt 0:00:33]} Rxe1 {[%emt 0:01:20]} 32. Kxe1 {[%emt 0:00:01]} Bb7 {[%emt 0:01:12]} 33. Ne6 {[%emt 0:00:12]} Ne5 {[%emt 0:04:04]} 34. Be2 {[%emt 0:00:01]} Bc8 {[%emt 0:01:02]} 35. Nc5 {[%emt 0:00:37]} Kf7 {[%emt 0:00:30]} 36. Bxa6 {[%emt 0:00:58]} Bxa6 {[%emt 0:01:19]} 37. Nxa6 {[%emt 0:00:02]} Ke7 {[%emt 0:00:45]} 38. Nc5 {[%emt 0:00:28]} Kd6 {[%emt 0:00:07]} 39. a6 {[%emt 0:00:06]} Nc4 {[%emt 0:00:18]} 40. a7 {[%emt 0:00:00]} Nb6 {[%emt 0:00:00]} 41. h4 {[%emt 0:06:22]} Na8 {[%emt 0:02:07]} 42. h5 {[%emt 0:00:31]} g6 {[%emt 0:08:06]} 43. h6 {[%emt 0:00:08]} Ke5 {[%emt 0:01:07]} 44. Nd7+ {[%emt 0:01:02]} Kf5 {[%emt 0:00:30]} 45. Nb8 {[%emt 0:00:02]} Ke4 {[%emt 0:03:28]} 46. Kd2 {[%emt 0:02:13]} c5 {[%emt 0:03:02]} 47. b5 {[%emt 0:00:09]} Ke5 {[%emt 0:01:55]} 48. b6 {[%emt 0:00:06]} 1-0

[Event "Cracovia Festival-A 2023"]
[Site "Krakow"]
[Date "2024.01.02"]
[Round "6.30"]
[White "Klepek, Witold"]
[Black "Babiarz, Arkadiusz"]
[Result "1-0"]
[ECO "B40"]
[WhiteElo "2252"]
[BlackElo "2129"]
[Annotator "RC"]
[PlyCount "55"]
[EventDate "2023.12.24"]
[EventType "swiss"]
[EventCountry "POL"]
[SourceTitle "playchess.com"]
[Source "ChessBase"]
[SourceQuality "1"]
[TimeControl "40/5400+30:1800+30"]

1. e4 {[%emt 0:01:44]} c5 {[%emt 0:00:06]} 2. Nf3 {[%emt 0:01:12]} e6 {[%emt 0:00:06]} 3. c3 {[%emt 0:00:03]} Nf6 {[%emt 0:00:05]} 4. e5 {[%emt 0:00:17]} Nd5 {[%emt 0:00:07]} 5. d4 {[%emt 0:00:27]} cxd4 {[%emt 0:00:07]} 6. cxd4 {[%emt 0:00:04]} d6 {[%emt 0:00:05]} 7. Nc3 {[%emt 0:01:43]} Nxc3 {[%emt 0:00:08]} 8. bxc3 {[%emt 0:00:04]} Qc7 {[%emt 0:00:05]} 9. Bd2 {[%emt 0:02:50]} Nd7 {[%emt 0:01:27]} 10. exd6 {[%emt 0:00:46]} Bxd6 {[%emt 0:00:08]} 11. Bd3 {[%emt 0:00:10]} Nf6 {[%emt 0:01:08]} 12. O-O {[%emt 0:00:54]} O-O {[%emt 0:00:28]} 13. a4 {[%emt 0:03:08]} b6 {[%emt 0:04:36]} 14. Re1 {[%emt 0:11:59]} Bf4 {[%emt 0:28:12]} 15. Ne5 {[%emt 0:03:38]} Bxd2 {[%emt 0:00:05]} 16. Qxd2 {[%emt 0:00:04]} Bb7 {[%emt 0:00:12]} 17. Re3 {[%emt 0:10:54]} Rac8 {[%emt 0:00:34]} 18. Rae1 {[%emt 0:04:31]} Kh8 {[%emt 0:00:27]} 19. Bb1 {[%emt 0:01:17]} Ba8 {[%emt 0:19:01]} 20. Rh3 {[%emt 0:04:55]} Rfd8 {[%emt 0:12:48]} 21. Qg5 {[%emt 0:02:04]} Qb7 {[%emt 0:03:02]} 22. f3 {[%emt 0:05:13]} Kg8 {[%emt 0:02:56]} 23. Bxh7+ {[%emt 0:02:30]} Nxh7 {[%emt 0:09:06]} 24. Qh5 {[%emt 0:00:34]} Kf8 {[%emt 0:03:11]} 25. Qxh7 {[%emt 0:00:15]} Rxc3 {[%emt 0:03:06]} 26. Qh8+ {[%emt 0:01:21]} Ke7 {[%emt 0:00:06]} 27. Qxg7 {[%emt 0:00:10]} Rxd4 {[%emt 0:02:51]} 28. Ng6+ {[%emt 0:00:15]} 1-0

[Event "Cracovia Festival-A 2023"]
[Site "Krakow"]
[Date "2024.01.02"]
[Round "6.31"]
[White "Piekielny, Pawel"]
[Black "Lehocz, Jozsef Jr."]
[Result "1-0"]
[ECO "A40"]
[WhiteElo "2250"]
[BlackElo "2116"]
[Annotator "RC"]
[PlyCount "119"]
[EventDate "2023.12.24"]
[EventType "swiss"]
[EventCountry "POL"]
[SourceTitle "playchess.com"]
[Source "ChessBase"]
[SourceQuality "1"]
[TimeControl "40/5400+30:1800+30"]

1. d4 {[%emt 0:00:02]} e6 {[%emt 0:04:19]} 2. c4 {[%emt 0:02:53]} b6 {[%emt 0:00:33]} 3. Nc3 {[%emt 0:00:17]} Bb7 {[%emt 0:00:13]} 4. e4 {[%emt 0:02:07]} Bb4 {[%emt 0:02:44]} 5. Bd3 {[%emt 0:06:32]} f5 {[%emt 0:06:39]} 6. d5 {[%emt 0:06:43]} fxe4 {[%emt 0:10:08]} 7. Bxe4 {[%emt 0:00:05]} Nf6 {[%emt 0:08:35]} 8. Bf3 {[%emt 0:00:05]} exd5 {[%emt 0:13:57]} 9. Nge2 {[%emt 0:00:09]} O-O {[%emt 0:14:26]} 10. O-O {[%emt 0:01:33]} Nc6 {[%emt 0:04:18]} 11. Nxd5 {[%emt 0:02:30]} Nxd5 {[%emt 0:02:48]} 12. Bxd5+ {[%emt 0:00:18]} Kh8 {[%emt 0:00:18]} 13. Bf4 {[%emt 0:07:15]} Qf6 {[%emt 0:05:32]} 14. a3 {[%emt 0:21:32]} Bd6 {[%emt 0:00:17]} 15. Bxd6 {[%emt 0:00:06]} Qxd6 {[%emt 0:00:06]} 16. Nc3 {[%emt 0:00:41]} a6 {[%emt 0:00:46]} 17. Be4 {[%emt 0:10:38]} Qxd1 {[%emt 0:06:02]} 18. Raxd1 {[%emt 0:00:08]} Rf7 {[%emt 0:02:02]} 19. Rfe1 {[%emt 0:02:00]} Raf8 {[%emt 0:04:55]} 20. f3 {[%emt 0:01:12]} Na5 {[%emt 0:03:26]} 21. Bxb7 {[%emt 0:03:07]} Nxb7 {[%emt 0:00:06]} 22. Nd5 {[%emt 0:00:11]} Na5 {[%emt 0:01:28]} 23. Nxc7 {[%emt 0:11:07]} Nxc4 {[%emt 0:00:39]} 24. Re2 {[%emt 0:01:59]} d5 {[%emt 0:05:03]} 25. Nxa6 {[%emt 0:00:54]} Rd7 {[%emt 0:00:13]} 26. Rd4 {[%emt 0:00:53]} Rfd8 {[%emt 0:01:55]} 27. Nb4 {[%emt 0:00:47]} h6 {[%emt 0:00:30]} 28. Kf2 {[%emt 0:02:50]} Kh7 {[%emt 0:02:01]} 29. h4 {[%emt 0:00:42]} Na5 {[%emt 0:00:07]} 30. Re5 {[%emt 0:02:09]} Nc4 {[%emt 0:00:39]} 31. Rexd5 {[%emt 0:00:55]} Rxd5 {[%emt 0:00:07]} 32. Rxd5 {[%emt 0:00:11]} Rc8 {[%emt 0:00:07]} 33. Rb5 {[%emt 0:02:21]} Nxb2 {[%emt 0:00:04]} 34. Rxb6 {[%emt 0:00:04]} Nc4 {[%emt 0:01:33]} 35. Ra6 {[%emt 0:00:31]} Rb8 {[%emt 0:00:05]} 36. Nc6 {[%emt 0:03:21]} Rb2+ {[%emt 0:00:11]} 37. Kg3 {[%emt 0:00:13]} Ne3 {[%emt 0:00:29]} 38. a4 {[%emt 0:00:57]} Rxg2+ {[%emt 0:00:51]} 39. Kf4 {[%emt 0:00:51]} Nc4 {[%emt 0:01:14]} 40. Ra7 {[%emt 0:00:00]} Rg6 {[%emt 0:00:00]} 41. Nd4 {[%emt 0:05:48]} Rf6+ {[%emt 0:05:53]} 42. Ke4 {[%emt 0:02:19]} Nd2+ {[%emt 0:13:44]} 43. Ke3 {[%emt 0:02:01]} Nc4+ {[%emt 0:01:08]} 44. Kd3 {[%emt 0:00:44]} Ne5+ {[%emt 0:01:58]} 45. Ke4 {[%emt 0:00:10]} Nc4 {[%emt 0:01:26]} 46. a5 {[%emt 0:06:12]} Kg6 {[%emt 0:01:25]} 47. a6 {[%emt 0:07:18]} Nd2+ {[%emt 0:00:57]} 48. Ke3 {[%emt 0:01:09]} Nc4+ {[%emt 0:00:17]} 49. Kd3 {[%emt 0:00:52]} Ne5+ {[%emt 0:00:17]} 50. Ke4 {[%emt 0:00:14]} Nc6 {[%emt 0:00:04]} 51. Rb7 {[%emt 0:09:07]} Nxd4 {[%emt 0:01:00]} 52. a7 {[%emt 0:01:17]} Ra6 {[%emt 0:08:09]} 53. Kxd4 {[%emt 0:00:12]} Ra5 {[%emt 0:00:43]} 54. Kc4 {[%emt 0:01:14]} Kf6 {[%emt 0:00:31]} 55. Kb4 {[%emt 0:00:52]} Ra1 {[%emt 0:00:22]} 56. Kb5 {[%emt 0:00:05]} Rb1+ {[%emt 0:00:17]} 57. Kc6 {[%emt 0:00:08]} Ra1 {[%emt 0:00:04]} 58. Kc7 {[%emt 0:01:27]} g5 {[%emt 0:00:17]} 59. hxg5+ {[%emt 0:03:27]} Kxg5 {[%emt 0:00:30]} 60. Kb8 {[%emt 0:00:04]} 1-0

[Event "Cracovia Festival-A 2023"]
[Site "Krakow"]
[Date "2024.01.02"]
[Round "6.32"]
[White "Fodor, Balazs"]
[Black "Warchol, Kamil"]
[Result "1-0"]
[ECO "A06"]
[WhiteElo "2225"]
[BlackElo "2108"]
[Annotator "RC"]
[PlyCount "115"]
[EventDate "2023.12.24"]
[EventType "swiss"]
[EventCountry "POL"]
[SourceTitle "playchess.com"]
[Source "ChessBase"]
[SourceQuality "1"]
[TimeControl "40/5400+30:1800+30"]

1. Nf3 {[%emt 0:06:24]} d5 {[%emt 0:00:29]} 2. e3 {[%emt 0:00:10]} Nf6 {[%emt 0:02:08]} 3. c4 {[%emt 0:00:10]} e6 {[%emt 0:01:56]} 4. Nc3 {[%emt 0:00:10]} b6 {[%emt 0:02:00]} 5. b3 {[%emt 0:01:32]} Bb7 {[%emt 0:01:40]} 6. Bb2 {[%emt 0:00:12]} Be7 {[%emt 0:02:31]} 7. Be2 {[%emt 0:00:28]} O-O {[%emt 0:01:53]} 8. Qc2 {[%emt 0:00:11]} c5 {[%emt 0:04:43]} 9. cxd5 {[%emt 0:00:12]} exd5 {[%emt 0:07:24]} 10. d4 {[%emt 0:00:09]} Nc6 {[%emt 0:02:53]} 11. dxc5 {[%emt 0:02:29]} bxc5 {[%emt 0:08:42]} 12. O-O {[%emt 0:00:39]} Nb4 {[%emt 0:06:14]} 13. Qb1 {[%emt 0:04:08]} Qb6 {[%emt 0:04:17]} 14. Na4 {[%emt 0:02:58]} Qa5 {[%emt 0:02:01]} 15. a3 {[%emt 0:06:35]} Nc6 {[%emt 0:03:40]} 16. Qc2 {[%emt 0:12:47]} Ne4 {[%emt 0:03:50]} 17. Rfd1 {[%emt 0:05:56]} Rfd8 {[%emt 0:03:57]} 18. Rac1 {[%emt 0:05:18]} Rac8 {[%emt 0:02:56]} 19. Nd2 {[%emt 0:12:38]} Nxd2 {[%emt 0:05:01]} 20. Rxd2 {[%emt 0:02:29]} d4 {[%emt 0:02:51]} 21. Rdd1 {[%emt 0:03:52]} dxe3 {[%emt 0:02:06]} 22. fxe3 {[%emt 0:00:10]} Bg5 {[%emt 0:01:02]} 23. Rxd8+ {[%emt 0:06:13]} Rxd8 {[%emt 0:02:20]} 24. Qc3 {[%emt 0:07:27]} Qxc3 {[%emt 0:08:22]} 25. Rxc3 {[%emt 0:00:05]} Rd2 {[%emt 0:07:11]} 26. Bf3 {[%emt 0:00:57]} c4 {[%emt 0:06:34]} 27. Bc1 {[%emt 0:00:35]} Rd8 {[%emt 0:03:28]} 28. Nc5 {[%emt 0:02:30]} Ba8 {[%emt 0:00:49]} 29. bxc4 {[%emt 0:05:45]} Be7 {[%emt 0:00:31]} 30. Nb3 {[%emt 0:00:55]} Ne5 {[%emt 0:01:11]} 31. Bxa8 {[%emt 0:00:54]} Rxa8 {[%emt 0:00:02]} 32. c5 {[%emt 0:00:56]} Rc8 {[%emt 0:00:43]} 33. e4 {[%emt 0:00:12]} h6 {[%emt 0:00:46]} 34. Bf4 {[%emt 0:01:04]} Bf6 {[%emt 0:00:29]} 35. Bxe5 {[%emt 0:00:38]} Bxe5 {[%emt 0:00:02]} 36. Rc4 {[%emt 0:00:38]} Kf8 {[%emt 0:00:46]} 37. Kf2 {[%emt 0:00:16]} Ke7 {[%emt 0:00:31]} 38. h3 {[%emt 0:00:17]} Kd7 {[%emt 0:00:33]} 39. Ra4 {[%emt 0:00:33]} Rb8 {[%emt 0:00:50]} 40. Rxa7+ {[%emt 0:00:00]} Kc6 {[%emt 0:00:00]} 41. Ra6+ {[%emt 0:04:40]} Kd7 {[%emt 0:06:27]} 42. c6+ {[%emt 0:02:44]} Kc7 {[%emt 0:01:13]} 43. Na5 {[%emt 0:02:08]} Rb2+ {[%emt 0:00:42]} 44. Ke3 {[%emt 0:02:07]} Rc2 {[%emt 0:07:57]} 45. a4 {[%emt 0:02:51]} Rc5 {[%emt 0:02:12]} 46. Kd3 {[%emt 0:00:19]} Rc3+ {[%emt 0:00:12]} 47. Kd2 {[%emt 0:00:14]} Rc5 {[%emt 0:01:34]} 48. Nb3 {[%emt 0:02:04]} Rc3 {[%emt 0:01:14]} 49. Nc1 {[%emt 0:13:09]} Rc4 {[%emt 0:03:04]} 50. Nd3 {[%emt 0:00:06]} Rxe4 {[%emt 0:00:49]} 51. Nxe5 {[%emt 0:03:06]} Rxe5 {[%emt 0:00:09]} 52. Ra7+ {[%emt 0:00:03]} Kxc6 {[%emt 0:00:31]} 53. Rxf7 {[%emt 0:00:04]} Re4 {[%emt 0:06:43]} 54. Rxg7 {[%emt 0:00:48]} Rxa4 {[%emt 0:00:07]} 55. Ke3 {[%emt 0:00:11]} h5 {[%emt 0:01:58]} 56. Rg5 {[%emt 0:00:05]} h4 {[%emt 0:00:12]} 57. Rg4 {[%emt 0:00:04]} Ra2 {[%emt 0:00:05]} 58. Kf4 {[%emt 0:00:04]} 1-0

[Event "Cracovia Festival-A 2023"]
[Site "Krakow"]
[Date "2024.01.02"]
[Round "6.33"]
[White "Turski, Bartlomiej"]
[Black "Mirski, Stanislaw"]
[Result "1-0"]
[ECO "B42"]
[WhiteElo "2380"]
[BlackElo "2187"]
[Annotator "RC"]
[PlyCount "79"]
[EventDate "2023.12.24"]
[EventType "swiss"]
[EventCountry "POL"]
[SourceTitle "playchess.com"]
[Source "ChessBase"]
[SourceQuality "1"]
[TimeControl "40/5400+30:1800+30"]

1. e4 {[%emt 0:00:23]} c5 {[%emt 0:00:00]} 2. Nf3 {[%emt 0:00:05]} e6 {[%emt 0:00:00]} 3. d4 {[%emt 0:00:05]} cxd4 {[%emt 0:00:00]} 4. Nxd4 {[%emt 0:00:05]} a6 {[%emt 0:00:00]} 5. Bd3 {[%emt 0:00:06]} Bc5 {[%emt 0:00:00]} 6. Nb3 {[%emt 0:00:07]} Be7 {[%emt 0:00:04]} 7. Qg4 {[%emt 0:00:05]} g6 {[%emt 0:00:02]} 8. Qe2 {[%emt 0:00:05]} d6 {[%emt 0:00:07]} 9. Nc3 {[%emt 0:00:06]} Nd7 {[%emt 0:00:10]} 10. a3 {[%emt 0:00:05]} Qc7 {[%emt 0:02:32]} 11. Be3 {[%emt 0:01:42]} Ngf6 {[%emt 0:00:08]} 12. O-O-O {[%emt 0:01:22]} b5 {[%emt 0:07:55]} 13. f4 {[%emt 0:03:22]} Bb7 {[%emt 0:08:24]} 14. Kb1 {[%emt 0:04:50]} Bc6 {[%emt 0:18:30]} 15. g4 {[%emt 0:07:14]} Nc5 {[%emt 0:08:30]} 16. g5 {[%emt 0:02:48]} Nfd7 {[%emt 0:01:36]} 17. Bd4 {[%emt 0:04:44]} e5 {[%emt 0:01:18]} 18. fxe5 {[%emt 0:01:30]} dxe5 {[%emt 0:00:02]} 19. Bxc5 {[%emt 0:00:13]} Nxc5 {[%emt 0:00:48]} 20. Nxc5 {[%emt 0:00:41]} Bxc5 {[%emt 0:00:07]} 21. Nd5 {[%emt 0:00:03]} Bxd5 {[%emt 0:00:56]} 22. exd5 {[%emt 0:00:11]} h6 {[%emt 0:22:54]} 23. d6 Bxd6 {[%emt 0:01:09]} 24. Qf3 {[%emt 0:04:17]} O-O-O {[%emt 0:08:06]} 25. c4 {[%emt 0:05:50]} Kb8 {[%emt 0:06:10]} 26. cxb5 {[%emt 0:00:35]} axb5 {[%emt 0:01:07]} 27. Bxb5 {[%emt 0:01:53]} hxg5 {[%emt 0:05:02]} 28. Bc6 {[%emt 0:02:15]} Bc5 {[%emt 0:01:20]} 29. Rc1 {[%emt 0:01:19]} Bb6 {[%emt 0:02:48]} 30. Be4 {[%emt 0:02:22]} Qa7 {[%emt 0:00:38]} 31. Rc6 {[%emt 0:03:38]} Rc8 {[%emt 0:01:54]} 32. Rf6 {[%emt 0:00:10]} Rhe8 {[%emt 0:01:30]} 33. Rxf7 {[%emt 0:00:27]} Re7 {[%emt 0:00:56]} 34. Rf6 {[%emt 0:00:06]} Qa5 {[%emt 0:00:35]} 35. b4 {[%emt 0:03:51]} Qa7 {[%emt 0:00:02]} 36. Qe2 {[%emt 0:00:25]} Rf7 {[%emt 0:00:23]} 37. Rxg6 {[%emt 0:01:31]} Rg7 {[%emt 0:01:19]} 38. Rh6 {[%emt 0:00:39]} Rc3 {[%emt 0:01:39]} 39. Qb5 {[%emt 0:00:47]} Kc7 {[%emt 0:00:00]} 40. Qxe5+ {[%emt 0:00:00]} 1-0